bitfinex-derivatives/quotes_BTCF0:USTF0_20250308
["timestamp","ask_amount","ask_price","bid_price","bid_amount"]
[1741421055273,0.26664425,86223.0,86222.0,0.19885645]
[1741421055472,0.26664425,86223.0,86222.0,0.28865645]
[1741421055676,0.15065665,86223.0,86222.0,0.48105645]
[1741421055883,0.07530314,86223.0,86222.0,0.48105645]
[1741421056180,0.07530314,86223.0,86222.0,0.56152015]
[1741421056777,0.09711044,86224.0,86223.0,0.3083876]
[1741421056973,0.09711044,86224.0,86223.0,0.3981876]
[1741421057281,0.04643,86225.0,86223.0,0.43865515]
[1741421057481,0.1159869,86224.0,86223.0,0.3981862]
[1741421057781,0.1159869,86224.0,86223.0,0.88029337]
[1741421058280,0.02974895,86224.0,86223.0,0.88029337]
[1741421058467,0.04643,86225.0,86224.0,0.1159862]
[1741421058672,0.04643,86225.0,86224.0,0.24512192]
[1741421058876,0.04643,86225.0,86224.0,0.43752192]
[1741421059580,0.04639,86225.0,86224.0,0.43752192]
[1741421060182,0.04639,86225.0,86224.0,0.51839337]
[1741421060381,0.0763221,86225.0,86224.0,0.51839337]
[1741421060585,0.0763221,86225.0,86224.0,0.51939337]
[1741421060880,0.01117274,86227.0,86226.0,0.3083835]
[1741421061077,0.01117274,86227.0,86226.0,0.34881922]
[1741421061478,0.0407415,86227.0,86226.0,0.34881922]
[1741421062811,0.0407415,86227.0,86226.0,0.34981922]
[1741421065415,0.15820124,86229.0,86228.0,0.1159808]
[1741421065803,0.15820124,86229.0,86228.0,0.15641652]
[1741421066108,0.15820124,86229.0,86228.0,0.24581652]
[1741421066705,0.15820124,86229.0,86228.0,0.24681652]
[1741421068311,0.15820124,86229.0,86228.0,0.43921652]
[1741421069104,0.04222174,86229.0,86228.0,0.43921652]
[1741421069709,0.07156433,86229.0,86228.0,0.43921652]
[1741421070216,0.18754383,86229.0,86228.0,0.43921652]
[1741421072106,0.14532209,86229.0,86228.0,0.43921652]
[1741421072911,0.02934259,86229.0,86228.0,0.43921652]
[1741421073111,0.01679,86231.0,86228.0,0.32323572]
[1741421073307,0.03769349,86231.0,86230.0,0.4767781]
[1741421073614,4e-05,86231.0,86230.0,0.51721382]
[1741421074313,0.03759381,86231.0,86230.0,0.51721382]
[1741421074508,0.00877,86233.0,86230.0,0.51721382]
[1741421074715,0.00877,86233.0,86232.0,0.1159755]
[1741421074716,0.1827726,86233.0,86232.0,0.1159755]
[1741421074915,0.0667971,86233.0,86232.0,0.15641122]
[1741421075112,0.0667971,86233.0,86232.0,0.25081122]
[1741421076612,0.10409925,86233.0,86232.0,0.25081122]
[1741421077313,0.04611215,86233.0,86232.0,0.25081122]
[1741421077715,0.16208625,86233.0,86232.0,0.25181122]
[1741421077911,0.04611215,86233.0,86232.0,0.25181122]
[1741421078111,0.16208625,86233.0,86232.0,0.25181122]
[1741421078413,0.16208625,86233.0,86232.0,0.44421122]
[1741421078612,0.04611215,86233.0,86232.0,0.44421122]
[1741421079316,0.04607215,86233.0,86232.0,0.44421122]
[1741421079510,0.03447215,86233.0,86232.0,0.44421122]
[1741421079715,4e-05,86235.0,86232.0,0.32823572]
[1741421080015,0.15371965,86235.0,86234.0,0.1159728]
[1741421080314,0.03774825,86235.0,86234.0,0.25060852]
[1741421080707,0.20021965,86235.0,86234.0,0.25060852]
[1741421080910,0.03774825,86235.0,86234.0,0.44300852]
[1741421081307,0.00173998,86255.0,86240.0,0.0579817]
[1741421081508,0.1159526,86249.0,86248.0,0.3608]
[1741421081711,0.1159526,86249.0,86248.0,0.40123572]
[1741421082212,0.15272543,86249.0,86248.0,0.40123572]
[1741421082418,0.16172543,86249.0,86248.0,0.51718962]
[1741421082617,0.16172543,86249.0,86248.0,0.40123572]
[1741421083819,0.16172543,86249.0,86248.0,0.4107889]
[1741421088432,0.15272543,86249.0,86248.0,0.5692428]
[1741421089229,0.16172543,86249.0,86248.0,0.5692428]
[1741421089520,0.04577283,86249.0,86248.0,0.5692428]
[1741421089724,0.16172543,86249.0,86248.0,0.5692428]
[1741421090322,0.16172543,86249.0,86248.0,0.2084428]
[1741421090514,0.16172543,86249.0,86248.0,0.5692428]
[1741421090713,0.16172543,86249.0,86248.0,0.2084428]
[1741421090921,0.16172543,86249.0,86248.0,0.5692428]
[1741421091419,0.15272543,86249.0,86248.0,0.5692428]
[1741421091628,0.03677283,86249.0,86248.0,0.5692428]
[1741421091816,0.0579744,86252.0,86249.0,0.1739257]
[1741421092021,0.03253,86253.0,86252.0,0.3083486]
[1741421092224,0.06865944,86253.0,86252.0,0.3084645]
[1741421092418,0.03253,86253.0,86252.0,0.34890022]
[1741421092616,0.03253,86253.0,86252.0,0.39140022]
[1741421092617,0.07007317,86253.0,86252.0,0.39140022]
[1741421093321,0.18602037,86253.0,86252.0,0.39140022]
[1741421093716,0.18602037,86253.0,86252.0,0.39240022]
[1741421094329,0.18602037,86253.0,86252.0,0.27645162]
[1741421094530,0.18602037,86253.0,86252.0,0.39240022]
[1741421097623,0.17441037,86253.0,86252.0,0.39240022]
[1741421100631,0.17441037,86253.0,86252.0,0.08405162]
[1741421101221,0.22711037,86253.0,86252.0,0.08405162]
[1741421101430,0.22711037,86253.0,86252.0,0.04155162]
[1741421101822,0.0579743,86252.0,86249.0,0.01535491]
[1741421102115,0.1159526,86249.0,86248.0,0.36995318]
[1741421102320,0.1159526,86249.0,86248.0,0.36935318]
[1741421102825,0.1159526,86249.0,86248.0,0.36946188]
[1741421103127,0.1149526,86249.0,86248.0,0.36946188]
[1741421103932,0.1149526,86249.0,86248.0,0.37046188]
[1741421107833,0.1149526,86249.0,86248.0,0.48641578]
[1741421108434,0.1149526,86249.0,86248.0,0.57761578]
[1741421108629,0.1588526,86249.0,86248.0,0.57761578]
[1741421110229,0.0744,86250.0,86248.0,0.57761578]
[1741421110435,0.11643707,86253.0,86249.0,0.1159526]
[1741421110634,0.11595779,86253.0,86252.0,0.1159486]
[1741421110945,0.09555707,86253.0,86252.0,0.1159486]
[1741421111236,0.03758317,86253.0,86252.0,0.1159486]
[1741421111430,0.03754317,86253.0,86252.0,0.1159486]
[1741421111632,0.2756685,86261.0,86260.0,0.1159378]
[1741421111832,0.09499361,86261.0,86260.0,0.1159378]
[1741421112443,0.09499361,86261.0,86260.0,0.2088378]
[1741421112740,0.01532464,86261.0,86260.0,0.2088378]
[1741421112941,0.1159414,86261.0,86260.0,0.2088351]
[1741421113137,0.15202529,86261.0,86260.0,0.2088351]
[1741421113433,0.03808389,86261.0,86260.0,0.2098351]
[1741421114244,0.15402039,86261.0,86260.0,0.2098351]
[1741421115544,0.15302039,86261.0,86260.0,0.2098351]
[1741421116636,0.08783743,86261.0,86260.0,0.2098351]
[1741421117241,0.12531654,86261.0,86260.0,0.2098351]
[1741421117944,0.12531654,86261.0,86260.0,0.0463]
[1741421118646,0.21281654,86261.0,86260.0,0.0463]
[1741421118844,0.08307911,86261.0,86260.0,0.1622378]
[1741421119044,0.03847911,86261.0,86260.0,0.1622378]
[1741421119930,0.15441561,86261.0,86260.0,0.1622378]
[1741421121245,0.15441561,86261.0,86260.0,0.2071378]
[1741421122037,0.15441561,86261.0,86260.0,0.0912]
[1741421122645,0.20031561,86261.0,86260.0,0.2071378]
[1741421122840,0.24321561,86261.0,86260.0,0.2071378]
[1741421123649,0.24321561,86261.0,86260.0,0.0912]
[1741421123850,0.1635461,86261.0,86260.0,0.0912]
[1741421124040,0.1635461,86261.0,86260.0,0.2071378]
[1741421124441,0.1635461,86261.0,86260.0,0.0912]
[1741421124742,0.08387659,86261.0,86260.0,0.2071378]
[1741421124948,0.19981309,86261.0,86260.0,0.0912]
[1741421125152,0.15691309,86261.0,86260.0,0.0912]
[1741421125335,0.15691309,86261.0,86260.0,0.2071378]
[1741421127751,0.19470741,86261.0,86260.0,0.2071378]
[1741421128953,0.19470741,86261.0,86260.0,0.3995378]
[1741421130255,0.19470741,86261.0,86260.0,0.001]
[1741421130555,0.1159459,86254.0,86253.0,0.0476]
[1741421131256,0.1588459,86254.0,86253.0,0.0476]
[1741421131951,0.1588459,86254.0,86253.0,0.0486]
[1741421132746,0.1588459,86254.0,86253.0,0.001]
[1741421134750,0.09365186,86254.0,86253.0,0.0462]
[1741421138452,0.02845824,86254.0,86253.0,0.0462]
[1741421138655,0.02317831,86255.0,86253.0,0.0462]
[1741421138852,0.1159459,86254.0,86253.0,0.001]
[1741421139558,0.03626579,86254.0,86253.0,0.001]
[1741421139759,0.02321831,86255.0,86253.0,0.001]
[1741421139958,0.1159459,86254.0,86253.0,0.001]
[1741421140961,0.1159499,86251.0,86248.0,0.00866188]
[1741421141154,0.1159526,86249.0,86248.0,0.00866188]
[1741421141353,0.1149526,86249.0,86248.0,0.00866188]
[1741421142358,0.1149526,86249.0,86248.0,0.05296188]
[1741421142761,0.1149526,86249.0,86248.0,0.16891578]
[1741421143160,0.1149526,86249.0,86248.0,0.05296188]
[1741421143358,0.1149526,86249.0,86248.0,0.05396188]
[1741421144162,0.1179526,86249.0,86248.0,0.10046188]
[1741421145960,0.0527582,86249.0,86248.0,0.10046188]
[1741421146847,0.0527582,86249.0,86248.0,0.0475]
[1741421147059,0.0527582,86249.0,86248.0,0.02424967]
[1741421148762,0.0527582,86249.0,86248.0,0.001]
[1741421149158,0.33387482,86249.0,86248.0,0.001]
[1741421149358,0.44982742,86249.0,86248.0,0.001]
[1741421149864,0.37014404,86249.0,86248.0,0.001]
[1741421150166,0.30493961,86249.0,86248.0,0.001]
[1741421150561,0.30493961,86249.0,86248.0,0.00961054]
[1741421155858,0.23973222,86249.0,86248.0,0.00961054]
[1741421156865,0.1159634,86241.0,86240.0,0.0904]
[1741421157170,0.1903634,86241.0,86240.0,0.0904]
[1741421157853,0.2387634,86241.0,86240.0,0.0904]
[1741421158368,0.23821855,86241.0,86240.0,0.0904]
[1741421159058,0.23921855,86241.0,86240.0,0.0914]
[1741421159663,0.23821855,86241.0,86240.0,0.0904]
[1741421159969,0.23921855,86241.0,86240.0,0.0914]
[1741421160861,0.17401018,86241.0,86240.0,0.0914]
[1741421161371,0.21781018,86241.0,86240.0,0.0914]
[1741421165864,0.15260183,86241.0,86240.0,0.0914]
[1741421166167,0.26856523,86241.0,86240.0,0.0914]
[1741421167266,0.26326619,86241.0,86240.0,0.0914]
[1741421170173,0.18356715,86241.0,86240.0,0.0914]
[1741421170963,0.18356715,86241.0,86240.0,0.1317013]
[1741421174671,0.23316715,86241.0,86240.0,0.1317013]
[1741421178867,0.23316715,86241.0,86240.0,0.0641713]
[1741421181282,0.23316715,86241.0,86240.0,0.0336713]
[1741421182080,0.23316715,86241.0,86240.0,0.0828713]
[1741421182672,0.23316715,86241.0,86240.0,0.04714999]
[1741421183380,0.59396715,86241.0,86240.0,0.04714999]
[1741421184375,0.4848,86241.0,86225.0,0.35741196]
[1741421184577,0.1159835,86226.0,86225.0,0.35741196]
[1741421184882,0.1903835,86226.0,86225.0,0.35741196]
[1741421185781,0.18507913,86226.0,86225.0,0.35841196]
[1741421186183,0.18507913,86226.0,86225.0,0.001]
[1741421186484,0.18507913,86226.0,86225.0,0.3618]
[1741421187683,0.18507913,86226.0,86225.0,0.001]
[1741421187881,0.18507913,86226.0,86225.0,0.3608]
[1741421188178,0.18607913,86226.0,86225.0,0.3618]
[1741421190679,0.23255118,86226.0,86225.0,0.3618]
[1741421197886,0.23255118,86226.0,86225.0,0.001]
[1741421198184,0.23255118,86226.0,86225.0,0.3618]
[1741421198382,0.23255118,86226.0,86225.0,0.001]
[1741421198580,0.23255118,86226.0,86225.0,0.3618]
[1741421198982,0.20937118,86226.0,86225.0,0.3618]
[1741421199288,0.23785555,86226.0,86225.0,0.3618]
[1741421199689,0.23785555,86226.0,86225.0,0.40211486]
[1741421200891,0.23251085,86226.0,86225.0,0.04131486]
[1741421201092,0.23251085,86226.0,86225.0,0.40211486]
[1741421204287,0.11652735,86226.0,86222.0,0.0485]
[1741421204487,0.1159876,86223.0,86222.0,0.0485]
[1741421204993,0.1090929,86225.0,86219.0,0.03659368]
[1741421204994,0.1159916,86220.0,86219.0,0.03659368]
[1741421205896,0.1670916,86220.0,86219.0,0.03659368]
[1741421206595,0.1660916,86220.0,86219.0,0.03659368]
[1741421207392,0.1680916,86220.0,86219.0,0.03759368]
[1741421207593,0.1680916,86220.0,86219.0,0.15358658]
[1741421207785,0.1680916,86220.0,86219.0,0.03759368]
[1741421211488,0.1680916,86220.0,86219.0,0.39839368]
[1741421214688,0.1680916,86220.0,86219.0,0.3618]
[1741421216394,0.1680916,86220.0,86219.0,0.001]
[1741421216590,0.1680916,86220.0,86219.0,0.3618]
[1741421217286,0.1680916,86220.0,86219.0,0.001]
[1741421217700,0.1680916,86220.0,86219.0,0.3618]
[1741421218095,0.0531,86220.0,86219.0,0.3618]
[1741421218796,0.0531,86220.0,86219.0,0.001]
[1741421219003,0.1690916,86220.0,86219.0,0.3618]
[1741421219504,0.1690916,86220.0,86219.0,0.001]
[1741421219904,0.1690916,86220.0,86219.0,0.3618]
[1741421220098,0.1690916,86220.0,86219.0,0.4106]
[1741421226117,0.04116735,86226.0,86223.0,0.0579933]
[1741421226401,0.04116735,86226.0,86219.0,0.5265929]
[1741421226402,0.1159849,86225.0,86224.0,0.1457]
[1741421226608,0.1661849,86225.0,86224.0,0.1457]
[1741421226807,0.1661849,86225.0,86224.0,0.0984]
[1741421227002,0.2175849,86225.0,86224.0,0.0984]
[1741421227709,0.1016,86225.0,86219.0,0.33103516]
[1741421227903,0.1159916,86220.0,86219.0,0.33103516]
[1741421228303,0.05077487,86220.0,86219.0,0.33103516]
[1741421229010,0.1159943,86218.0,86217.0,0.00017397]
[1741421229203,0.1160037,86211.0,86210.0,1.15821994]
[1741421229413,0.1160037,86211.0,86210.0,1.18220743]
[1741421229914,0.1160037,86211.0,86210.0,1.06620313]
[1741421230209,0.0991,86211.0,86210.0,1.06620313]
[1741421230912,0.2151037,86211.0,86210.0,1.11510313]
[1741421232501,0.2151037,86211.0,86210.0,0.2129034]
[1741421233003,0.2151037,86211.0,86210.0,0.2636034]
[1741421233714,0.2151037,86211.0,86210.0,0.4560034]
[1741421235311,0.19739243,86211.0,86210.0,0.49626938]
[1741421238108,0.11768066,86211.0,86210.0,0.49626938]
[1741421238313,0.1160037,86211.0,86210.0,0.49626838]
[1741421238608,0.1160037,86211.0,86210.0,0.11457929]
[1741421238913,0.1160037,86211.0,86210.0,0.09096598]
[1741421239812,0.1210037,86211.0,86210.0,0.09096598]
[1741421240605,0.1210037,86211.0,86210.0,0.09196598]
[1741421240814,0.1210037,86211.0,86210.0,0.20797108]
[1741421241813,0.1210037,86211.0,86210.0,0.09196598]
[1741421242014,0.1210037,86211.0,86210.0,0.14316598]
[1741421242614,0.1160051,86210.0,86209.0,4e-05]
[1741421242808,0.1160118,86205.0,86204.0,4e-05]
[1741421243009,0.1160118,86205.0,86204.0,0.04028326]
[1741421243411,0.1160279,86193.0,86187.0,0.5532]
[1741421243712,0.1160279,86193.0,86192.0,0.00178013]
[1741421244307,0.1160279,86193.0,86192.0,0.00174013]
[1741421245108,0.116032,86190.0,86189.0,4e-05]
[1741421245311,0.116032,86190.0,86187.0,0.3608]
[1741421245616,0.1160347,86188.0,86187.0,0.3608]
[1741421246203,0.116036,86187.0,86186.0,4e-05]
[1741421246406,0.0580166,86189.0,86186.0,4e-05]
[1741421246609,0.1160387,86185.0,86184.0,0.00881396]
[1741421246807,0.1903987,86185.0,86184.0,0.00881396]
[1741421247012,0.07436,86185.0,86172.0,0.32927628]
[1741421247207,0.07436,86185.0,86167.0,4e-05]
[1741421247208,0.3608,86175.0,86167.0,4e-05]
[1741421247414,0.1160589,86170.0,86162.0,0.0984]
[1741421247610,0.058032,86167.0,86165.0,4e-05]
[1741421247810,0.1160643,86166.0,86165.0,4e-05]
[1741421248316,0.058032,86167.0,86160.0,0.0580362]
[1741421248518,0.1160697,86163.0,86162.0,0.2144679]
[1741421249211,0.15614044,86163.0,86162.0,0.2144679]
[1741421249517,0.1160697,86162.0,86161.0,0.36991649]
[1741421249814,0.1652697,86162.0,86161.0,0.48538749]
[1741421250119,0.1652697,86162.0,86161.0,0.58098749]
[1741421250516,0.1652697,86162.0,86161.0,0.48538749]
[1741421251425,0.1652697,86162.0,86161.0,0.36931649]
[1741421251614,0.1652697,86162.0,86161.0,0.00851649]
[1741421251809,0.1160872,86149.0,86148.0,0.1161277]
[1741421252010,0.1160872,86149.0,86148.0,4e-05]
[1741421252420,0.1324416,86152.0,86138.0,0.0516]
[1741421252621,0.1160912,86146.0,86138.0,0.0516]
[1741421252815,0.1160912,86146.0,86143.0,0.1160947]
[1741421253225,0.1160912,86146.0,86144.0,0.0517]
[1741421253617,0.1160912,86146.0,86145.0,0.5250926]
[1741421254321,0.1160912,86146.0,86145.0,0.3608]
[1741421254914,0.1160912,86146.0,86145.0,0.36940431]
[1741421256523,0.1160912,86146.0,86145.0,0.48549691]
[1741421257023,0.2177,86149.0,86147.0,0.1160899]
[1741421257227,0.2177,86149.0,86148.0,0.2185885]
[1741421257418,0.3337872,86149.0,86148.0,0.2185885]
[1741421259927,0.3337872,86149.0,86148.0,0.1025]
[1741421260327,0.3337872,86149.0,86148.0,0.2185885]
[1741421261424,0.3853872,86149.0,86148.0,0.2185885]
[1741421261629,0.1676872,86149.0,86148.0,0.2185885]
[1741421262029,0.1560872,86149.0,86148.0,0.2185885]
[1741421262430,0.1560872,86149.0,86148.0,0.1025]
[1741421262731,0.1160912,86146.0,86145.0,0.37000431]
[1741421262932,0.1160912,86146.0,86145.0,0.36940431]
[1741421263533,0.2158912,86146.0,86145.0,0.36940431]
[1741421265031,0.2158912,86146.0,86145.0,0.46700431]
[1741421265433,0.2158912,86146.0,86145.0,0.10620431]
[1741421265625,0.2158912,86146.0,86145.0,0.46700431]
[1741421265832,0.2158912,86146.0,86145.0,0.41840431]
[1741421266431,0.01987,86166.0,86153.0,0.2024]
[1741421266636,0.01987,86166.0,86165.0,0.1160656]
[1741421266826,0.1160683,86163.0,86162.0,0.3614]
[1741421267030,0.1563328,86165.0,86161.0,0.0484]
[1741421267235,0.1160697,86162.0,86161.0,0.0484]
[1741421267939,0.1160697,86162.0,86161.0,0.164471]
[1741421268133,0.1677674,86164.0,86163.0,0.1160683]
[1741421268338,0.1004,86164.0,86163.0,0.1160683]
[1741421268835,0.01987,86166.0,86165.0,0.1160656]
[1741421269140,0.01987,86166.0,86165.0,0.3084656]
[1741421271930,0.00827,86166.0,86165.0,0.3084656]
[1741421273334,0.1243343,86166.0,86165.0,0.3084656]
[1741421273534,0.0801389,86166.0,86165.0,0.3084656]
[1741421273735,0.1160643,86166.0,86165.0,0.3084629]
[1741421273935,0.1160619,86168.0,86167.0,0.1160603]
[1741421274236,0.04925446,86168.0,86167.0,0.1160603]
[1741421274540,0.00017408,86170.0,86169.0,0.1160603]
[1741421274736,0.11623298,86170.0,86169.0,0.1160603]
[1741421274940,0.16651446,86170.0,86169.0,0.1160603]
[1741421275639,0.16651446,86170.0,86169.0,0.4768603]
[1741421276846,0.16651446,86170.0,86169.0,0.3608]
[1741421277040,0.16651446,86170.0,86169.0,0.4768603]
[1741421277250,0.21561446,86170.0,86169.0,0.3608]
[1741421277435,0.26731446,86170.0,86169.0,0.3608]
[1741421278150,0.15125556,86170.0,86154.0,4e-05]
[1741421278338,0.1160764,86157.0,86151.0,0.0580422]
[1741421278532,0.1160764,86157.0,86150.0,0.36148]
[1741421278732,0.1160764,86157.0,86155.0,0.1160786]
[1741421279147,0.1160764,86157.0,86156.0,0.25566013]
[1741421279341,0.1160764,86157.0,86156.0,0.13958233]
[1741421279546,0.2178764,86157.0,86156.0,0.13958233]
[1741421280646,0.1018,86157.0,86144.0,0.3608]
[1741421280848,0.1160926,86145.0,86144.0,0.3608]
[1741421281058,0.1018,86157.0,86155.0,0.1160791]
[1741421281241,0.0505,86157.0,86156.0,0.1160778]
[1741421281438,0.1665764,86157.0,86156.0,0.1649778]
[1741421282038,0.1665764,86157.0,86151.0,0.0580417]
[1741421282039,0.0505,86157.0,86153.0,0.1160817]
[1741421282245,0.0580393,86156.0,86152.0,0.0489]
[1741421282449,0.1160818,86153.0,86152.0,0.0489]
[1741421282943,0.1160818,86153.0,86152.0,0.1649832]
[1741421284357,0.1160818,86153.0,86152.0,0.0489]
[1741421285648,0.1160872,86149.0,86148.0,0.00021408]
[1741421285850,0.1160872,86149.0,86148.0,0.05311408]
[1741421287142,0.1160872,86149.0,86148.0,0.00021408]
[1741421287350,0.1160872,86149.0,86148.0,0.00017408]
[1741421287846,0.1699872,86149.0,86148.0,0.00017408]
[1741421288461,0.2447072,86149.0,86148.0,0.00017408]
[1741421290852,0.2447072,86149.0,86131.0,0.245]
[1741421290853,0.1161128,86130.0,86129.0,0.36931372]
[1741421291050,0.058052,86137.0,86129.0,0.36931372]
[1741421291051,0.0580555,86132.0,86129.0,0.36931372]
[1741421291363,0.1680115,86131.0,86130.0,0.1680128]
[1741421291560,0.21740989,86131.0,86130.0,0.2192128]
[1741421291956,0.20580989,86131.0,86130.0,0.2192128]
[1741421294257,0.20580989,86131.0,86130.0,0.1680128]
[1741421295160,0.20580989,86131.0,86130.0,0.0519]
[1741421295761,0.1161128,86130.0,86129.0,0.00851372]
[1741421295961,0.1161168,86127.0,86126.0,0.1695174]
[1741421296467,0.1161168,86127.0,86126.0,0.2187174]
[1741421301557,0.4769168,86127.0,86126.0,0.0534]
[1741421302466,0.4769168,86127.0,86126.0,0.1695182]
[1741421302860,0.1161182,86126.0,86125.0,0.00888487]
[1741421303058,0.1161222,86123.0,86122.0,0.00011645]
[1741421303366,0.1910022,86123.0,86122.0,0.00862789]
[1741421303559,0.1910022,86123.0,86122.0,0.00011645]
[1741421304464,0.1161303,86117.0,86116.0,4e-05]
[1741421304667,0.1161303,86117.0,86116.0,0.00011037]
[1741421305255,0.1161303,86117.0,86101.0,0.0502]
[1741421305256,0.1161506,86102.0,86101.0,0.0502]
[1741421305562,0.1161519,86101.0,86100.0,0.1]
[1741421307564,0.1161519,86101.0,86100.0,0.10868035]
[1741421311376,0.1656519,86101.0,86100.0,0.10868035]
[1741421313581,0.2408519,86101.0,86100.0,0.10868035]
[1741421315468,0.0531,86102.0,86100.0,0.10868035]
[1741421315469,0.12826,86102.0,86101.0,0.1161519]
[1741421315669,0.2444106,86102.0,86101.0,0.2183519]
[1741421315873,0.2444106,86102.0,86101.0,0.1022]
[1741421316370,0.2444106,86102.0,86101.0,0.0511]
[1741421318874,0.2444106,86102.0,86101.0,0.04412998]
[1741421320077,0.1161519,86101.0,86100.0,0.10868035]
[1741421320277,0.1708519,86101.0,86100.0,0.10868035]
[1741421320579,0.2212519,86101.0,86100.0,0.06444307]
[1741421320981,0.1051,86101.0,86065.0,0.00174298]
[1741421321276,0.1161883,86075.0,86074.0,0.1161879]
[1741421321581,0.1161883,86075.0,86074.0,0.1657879]
[1741421321978,0.14612432,86075.0,86074.0,0.1657879]
[1741421322281,0.14612432,86075.0,86074.0,0.2154879]
[1741421322476,0.19652432,86075.0,86074.0,0.2154879]
[1741421322978,0.15772302,86075.0,86074.0,0.2154879]
[1741421324381,0.1590118,86075.0,86074.0,0.2154879]
[1741421326882,0.15889751,86075.0,86074.0,0.2154879]
[1741421329087,0.04271051,86075.0,86074.0,0.2154879]
[1741421332375,0.03111051,86075.0,86074.0,0.2154879]
[1741421332576,0.00128878,86075.0,86074.0,0.2154879]
[1741421332777,0.11747578,86075.0,86074.0,0.2154879]
[1741421332981,0.15949958,86075.0,86074.0,0.2154879]
[1741421335178,0.09417762,86075.0,86074.0,0.2154879]
[1741421336881,0.01433968,86075.0,86074.0,0.2154879]
[1741421337079,0.116187,86075.0,86074.0,0.2154856]
[1741421337887,0.0580926,86077.0,86074.0,0.2154856]
[1741421338078,0.116187,86075.0,86074.0,0.2154856]
[1741421338387,0.15845643,86075.0,86074.0,0.2154856]
[1741421338595,0.26235643,86075.0,86074.0,0.2154856]
[1741421340292,0.21245643,86075.0,86074.0,0.2154856]
[1741421342385,0.20085643,86075.0,86074.0,0.2154856]
[1741421343281,0.0533,86082.0,86074.0,0.2154856]
[1741421343282,0.2177,86100.0,86080.0,0.0580896]
[1741421343482,0.0539,86092.0,86091.0,0.4769654]
[1741421343687,0.1700641,86092.0,86091.0,0.1161654]
[1741421343987,0.1161654,86091.0,86090.0,0.0546]
[1741421344187,0.1161654,86091.0,86090.0,0.1707668]
[1741421344387,0.0539,86091.0,86090.0,0.1707668]
[1741421344594,0.1700654,86091.0,86090.0,0.1707668]
[1741421344889,0.14264141,86091.0,86090.0,0.0546]
[1741421345191,0.14264141,86091.0,86090.0,0.1707668]
[1741421345583,0.14264141,86091.0,86090.0,0.0546]
[1741421345983,0.14264141,86091.0,86090.0,0.1096]
[1741421346389,0.14264141,86091.0,86090.0,0.2257668]
[1741421346781,0.0524,86091.0,86090.0,0.2257668]
[1741421346991,0.1161654,86091.0,86090.0,0.2257668]
[1741421348492,0.1671654,86091.0,86090.0,0.2257668]
[1741421349688,0.1671654,86091.0,86088.0,0.0582045]
[1741421349689,0.4118,86091.0,86088.0,0.00012]
[1741421349889,0.1161681,86089.0,86088.0,0.00012]
[1741421350592,0.1161681,86089.0,86079.0,0.220181]
[1741421350593,0.1161762,86083.0,86082.0,0.17035168]
[1741421351494,0.2198762,86083.0,86082.0,0.17035168]
[1741421352594,0.2198762,86083.0,86082.0,0.05417418]
[1741421352893,0.14003906,86083.0,86082.0,0.05417418]
[1741421353087,0.1037,86083.0,86082.0,0.17035168]
[1741421353394,0.2198762,86083.0,86082.0,0.17035168]
[1741421353787,0.2198762,86083.0,86082.0,0.05417418]
[1741421354489,0.2198762,86083.0,86082.0,0.17035168]
[1741421357188,0.14004171,86083.0,86082.0,0.17035168]
[1741421358097,0.07472266,86083.0,86082.0,0.17035168]
[1741421358784,0.07472266,86083.0,86082.0,0.36275168]
[1741421358988,0.07472266,86083.0,86082.0,0.17035168]
[1741421359591,0.07429424,86083.0,86082.0,0.17035168]
[1741421360091,0.07429424,86083.0,86082.0,0.05417418]
[1741421360496,0.07429424,86083.0,86082.0,0.10727418]
[1741421360791,0.07429424,86083.0,86082.0,0.22345168]
[1741421360994,0.04765947,86084.0,86082.0,0.22345168]
[1741421361191,0.1161762,86083.0,86082.0,0.10727418]
[1741421361689,0.1161762,86083.0,86082.0,0.22345168]
[1741421361893,0.1161762,86083.0,86082.0,0.10727418]
[1741421362481,0.1045762,86083.0,86082.0,0.22345168]
[1741421362697,0.1045762,86083.0,86082.0,0.10727418]
[1741421363092,0.1045762,86083.0,86082.0,0.22345168]
[1741421363800,0.1045762,86083.0,86082.0,0.10727418]
[1741421364187,0.1045762,86083.0,86082.0,0.22345168]
[1741421364495,0.1045762,86083.0,86082.0,0.10727418]
[1741421364696,0.1045762,86083.0,86082.0,0.22345168]
[1741421364895,0.1045762,86083.0,86082.0,0.10727418]
[1741421366599,0.1045762,86083.0,86082.0,0.07214963]
[1741421368497,0.1045762,86083.0,86082.0,0.18832713]
[1741421368707,0.1045762,86083.0,86082.0,0.07214963]
[1741421369699,0.1045762,86083.0,86082.0,0.18832713]
[1741421370395,0.1161762,86083.0,86082.0,0.18832673]
[1741421370587,0.1161762,86083.0,86082.0,0.07214963]
[1741421373403,0.1161762,86083.0,86082.0,0.06672912]
[1741421378398,0.058086,86087.0,86082.0,0.06672912]
[1741421378399,0.1699691,86089.0,86088.0,0.1161695]
[1741421378605,0.12936,86089.0,86086.0,0.0580856]
[1741421378801,0.1161695,86088.0,86087.0,0.1898705]
[1741421379499,0.1161695,86088.0,86087.0,0.0737]
[1741421380905,0.1527695,86088.0,86087.0,0.0737]
[1741421381304,0.1527695,86088.0,86087.0,0.038]
[1741421383106,0.0874502,86088.0,86087.0,0.038]
[1741421383507,0.1237502,86088.0,86087.0,0.038]
[1741421384500,0.04391549,86088.0,86087.0,0.038]
[1741421384700,0.16008499,86088.0,86087.0,0.038]
[1741421384899,0.1524695,86088.0,86087.0,0.038]
[1741421387800,0.1872695,86088.0,86087.0,0.038]
[1741421389203,0.0711,86088.0,86086.0,4e-05]
[1741421389403,0.1161708,86087.0,86086.0,4e-05]
[1741421389808,0.1885708,86087.0,86086.0,4e-05]
[1741421392908,0.1885708,86087.0,86082.0,0.02312752]
[1741421393115,0.1161748,86084.0,86083.0,0.0366]
[1741421393309,0.05085268,86084.0,86083.0,0.0366]
[1741421396017,0.0724,86087.0,86073.0,0.00875223]
[1741421396213,0.1161951,86069.0,86053.0,0.2213]
[1741421396405,0.1161951,86069.0,86061.0,0.1924]
[1741421396607,0.1161951,86069.0,86061.0,0.3086056]
[1741421396809,0.1161951,86069.0,86061.0,0.3086057]
[1741421397110,0.1525951,86069.0,86061.0,0.1924]
[1741421397315,0.1525951,86069.0,86068.0,0.11793934]
[1741421399021,0.1525951,86069.0,86068.0,0.31033934]
[1741421399218,0.1525951,86069.0,86068.0,0.38343934]
[1741421400722,0.1161944,86070.0,86069.0,0.1161951]
[1741421401015,0.1161944,86070.0,86069.0,0.1527951]
[1741421401220,0.1161944,86070.0,86069.0,0.2267951]
[1741421401721,0.1161944,86070.0,86069.0,0.1106]
[1741421401921,0.1546944,86070.0,86069.0,0.1106]
[1741421402224,0.1546944,86070.0,86069.0,0.074]
[1741421402722,0.1546944,86070.0,86069.0,0.1901951]
[1741421403017,0.1546944,86070.0,86069.0,0.074]